bitfinex-derivatives/quotes_SOLF0:USTF0_20260308
["timestamp","ask_amount","ask_price","bid_price","bid_amount"]
[1772967486677,10.17592402,83.614,83.579,8.09724256]
[1772967486981,11.06704991,83.633,83.579,8.09724256]
[1772967487277,11.06704991,83.628,83.579,8.09724256]
[1772967487580,10.18419286,83.627,83.579,8.09724256]
[1772967487879,10.764,83.611,83.579,8.09724256]
[1772967488080,10.18419286,83.61,83.579,8.09724256]
[1772967488380,10.18419286,83.609,83.579,8.09724256]
[1772967488580,10.18419286,83.608,83.579,8.09724256]
[1772967488881,20.94919286,83.607,83.579,8.09724256]
[1772967489080,10.18419286,83.606,83.556,8.02607081]
[1772967489379,10.766,83.601,83.559,8.02073116]
[1772967492679,10.766,83.596,83.559,8.02073116]
[1772967492982,10.20895266,83.595,83.559,8.02073116]
[1772967493177,10.20895266,83.594,83.559,8.02073116]
[1772967493378,10.20895266,83.593,83.559,8.02073116]
[1772967493680,10.21099659,83.592,83.559,8.02073116]
[1772967493981,10.21099659,83.591,83.559,8.02073116]
[1772967494172,10.21099659,83.59,83.559,8.02073116]
[1772967494377,10.766,83.596,83.559,8.02073116]
[1772967494582,10.21238823,83.595,83.559,8.02073116]
[1772967494780,10.21238823,83.594,83.559,8.02073116]
[1772967494980,10.21238823,83.593,83.559,8.02073116]
[1772967495178,10.21238823,83.592,83.559,8.02073116]
[1772967495385,10.21238823,83.591,83.559,8.02073116]
[1772967495684,10.21238823,83.59,83.559,8.02073116]
[1772967495883,10.21238823,83.589,83.559,8.02073116]
[1772967496179,10.766,83.596,83.559,8.02073116]
[1772967496384,10.766,83.594,83.559,8.02073116]
[1772967496578,10.21635935,83.593,83.559,8.02073116]
[1772967496779,10.21635935,83.592,83.559,8.02073116]
[1772967496983,10.21635935,83.591,83.559,8.02073116]
[1772967497178,10.766,83.594,83.559,8.02073116]
[1772967497383,10.767,83.592,83.559,8.02073116]
[1772967498385,10.22119806,83.591,83.559,8.02073116]
[1772967498582,10.767,83.592,83.559,8.02073116]
[1772967498784,10.22120026,83.591,83.559,8.02073116]
[1772967498984,10.767,83.592,83.559,8.02073116]
[1772967499186,10.22120026,83.591,83.559,8.02073116]
[1772967499385,10.767,83.592,83.559,8.02073116]
[1772967499586,10.22383903,83.591,83.559,8.02073116]
[1772967499787,10.767,83.592,83.559,8.02073116]
[1772967499986,10.22383996,83.591,83.559,8.02073116]
[1772967500188,10.767,83.592,83.559,8.02073116]
[1772967500383,10.22659136,83.591,83.559,8.02073116]
[1772967500687,10.767,83.592,83.559,8.02073116]
[1772967500887,10.22659264,83.591,83.559,8.02073116]
[1772967501086,10.767,83.592,83.559,8.02073116]
[1772967501276,10.22659264,83.591,83.559,8.02073116]
[1772967501484,10.767,83.592,83.559,8.02073116]
[1772967501790,10.22587222,83.591,83.559,8.02073116]
[1772967501984,10.767,83.592,83.559,8.02073116]
[1772967502184,10.22587222,83.591,83.559,8.02073116]
[1772967502384,10.766,83.6,83.559,8.02073116]
[1772967502584,10.22507403,83.599,83.559,8.02073116]
[1772967502784,10.22507403,83.598,83.559,8.02073116]
[1772967502985,10.22507403,83.597,83.559,8.02073116]
[1772967503186,10.22507403,83.596,83.559,8.02073116]
[1772967503386,10.22507403,83.595,83.559,8.02073116]
[1772967503685,10.22507403,83.594,83.559,8.02073116]
[1772967503885,10.22507403,83.593,83.559,8.02073116]
[1772967504086,11.16273892,83.613,83.563,7.96378634]
[1772967504287,21.38715687,83.612,83.563,7.96378634]
[1772967504487,10.22441795,83.611,83.563,7.96378634]
[1772967504688,10.22441795,83.61,83.563,7.96378634]
[1772967504888,10.22441795,83.609,83.563,7.96378634]
[1772967505090,10.22441795,83.608,83.563,7.96378634]
[1772967505287,11.16273892,83.613,83.563,7.96378634]
[1772967505288,10.22441795,83.607,83.563,7.96378634]
[1772967505589,10.22441795,83.606,83.563,7.96378634]
[1772967505790,10.765,83.603,83.563,7.96378634]
[1772967505994,10.22441795,83.602,83.563,7.96378634]
[1772967506194,10.22441795,83.601,83.563,7.96378634]
[1772967506394,10.22441795,83.6,83.563,7.96378634]
[1772967506695,10.765,83.603,83.563,7.96378634]
[1772967506696,10.22441795,83.599,83.563,7.96378634]
[1772967506896,10.22441795,83.598,83.563,7.96378634]
[1772967507094,10.765,83.603,83.563,7.96378634]
[1772967507294,10.2235912,83.602,83.563,7.96378634]
[1772967507491,10.2235912,83.601,83.563,7.96378634]
[1772967507698,10.2235912,83.6,83.563,7.96378634]
[1772967507898,10.2235912,83.599,83.563,7.96378634]
[1772967508095,10.2235912,83.598,83.563,7.96378634]
[1772967508303,10.2235912,83.597,83.563,7.96378634]
[1772967508498,10.2235912,83.596,83.563,7.96378634]
[1772967508692,10.2235912,83.595,83.563,7.96378634]
[1772967508999,10.765,83.603,83.563,7.96378634]
[1772967509201,10.22327031,83.602,83.563,7.96378634]
[1772967509400,10.22327031,83.601,83.563,7.96378634]
[1772967509601,10.22327031,83.6,83.563,7.96378634]
[1772967509797,10.22327031,83.599,83.563,7.96378634]
[1772967510002,10.22327031,83.598,83.563,7.96378634]
[1772967510196,10.22327031,83.597,83.563,7.96378634]
[1772967510392,10.22327031,83.596,83.563,7.96378634]
[1772967510598,10.22327031,83.595,83.563,7.96378634]
[1772967510892,10.765,83.603,83.563,7.96378634]
[1772967511095,10.22196063,83.602,83.563,7.96378634]
[1772967511297,10.22196063,83.601,83.563,7.96378634]
[1772967511494,10.22196063,83.6,83.563,7.96378634]
[1772967511700,10.22196063,83.599,83.563,7.96378634]
[1772967511901,10.22196063,83.598,83.563,7.96378634]
[1772967512099,10.22196063,83.597,83.563,7.96378634]
[1772967512302,10.22196063,83.596,83.563,7.96378634]
[1772967512501,10.764,83.611,83.563,7.96378634]
[1772967512704,10.22123364,83.61,83.563,7.96378634]
[1772967512903,10.22123364,83.609,83.563,7.96378634]
[1772967513105,10.22123364,83.608,83.563,7.96378634]
[1772967513302,10.765,83.606,83.563,7.96378634]
[1772967513508,10.22123364,83.605,83.563,7.96378634]
[1772967513804,10.22123364,83.604,83.563,7.96378634]
[1772967514004,10.22123364,83.603,83.563,7.96378634]
[1772967514206,10.22123364,83.602,83.563,7.96378634]
[1772967514402,10.22123364,83.601,83.563,7.96378634]
[1772967514600,10.22123364,83.6,83.563,7.96378634]
[1772967514803,10.22123364,83.599,83.563,7.96378634]
[1772967515007,10.765,83.606,83.563,7.96378634]
[1772967515197,10.22232655,83.605,83.563,7.96378634]
[1772967515396,10.22232655,83.604,83.563,7.96378634]
[1772967515603,10.22232655,83.603,83.563,7.96378634]
[1772967515907,10.22232655,83.602,83.563,7.96378634]
[1772967516109,10.22232655,83.601,83.563,7.96378634]
[1772967516306,10.22232655,83.6,83.563,7.96378634]
[1772967516507,10.22232655,83.599,83.563,7.96378634]
[1772967516704,10.22232655,83.598,83.563,7.96378634]
[1772967516903,10.22232655,83.597,83.563,7.96378634]
[1772967517103,10.22232655,83.596,83.563,7.96378634]
[1772967517302,10.765,83.606,83.563,7.96378634]
[1772967517508,10.22301721,83.605,83.563,7.96378634]
[1772967517708,10.22301721,83.604,83.563,7.96378634]
[1772967517908,11.16273892,83.625,83.564,7.9643174]
[1772967518104,10.22196087,83.624,83.564,7.9643174]
[1772967518305,10.22196087,83.623,83.564,7.9643174]
[1772967518510,10.22196087,83.622,83.564,7.9643174]
[1772967518711,10.22196087,83.621,83.564,7.9643174]
[1772967518912,10.22196087,83.62,83.571,7.96432549]
[1772967519104,10.22196087,83.619,83.571,7.96432549]
[1772967519311,10.22196087,83.618,83.571,7.96432549]
[1772967519510,10.22196087,83.617,83.571,7.96432549]
[1772967519711,10.22196087,83.616,83.571,7.96432549]
[1772967519910,10.22196087,83.615,83.571,7.96432549]
[1772967520110,10.22196087,83.614,83.571,7.96432549]
[1772967520314,10.22196087,83.613,83.571,7.96432549]
[1772967520510,10.22196087,83.612,83.571,7.96432549]
[1772967520711,10.22196087,83.611,83.571,7.96432549]
[1772967520907,10.22196087,83.61,83.571,7.96432549]
[1772967521106,10.22196087,83.609,83.571,7.96432549]
[1772967521307,10.22196087,83.608,83.571,7.96432549]
[1772967521512,10.22196087,83.607,83.571,7.96432549]
[1772967521711,10.22196087,83.606,83.571,7.96432549]
[1772967521911,10.763,83.622,83.571,7.96432549]
[1772967522111,10.22184202,83.621,83.571,7.96432549]
[1772967522315,10.22184202,83.62,83.571,7.96432549]
[1772967522516,10.763,83.618,83.571,7.96432549]
[1772967522821,10.22184202,83.617,83.571,7.96432549]
[1772967523014,10.22184202,83.616,83.571,7.96432549]
[1772967523324,10.22184202,83.615,83.571,7.96432549]
[1772967523517,10.22184202,83.614,83.571,7.96432549]
[1772967523714,10.22184202,83.613,83.571,7.96432549]
[1772967523914,10.22184202,83.612,83.571,7.96432549]
[1772967524114,10.22184202,83.611,83.571,7.96432549]
[1772967524314,10.22184202,83.61,83.571,7.96432549]
[1772967524520,10.22184202,83.609,83.571,7.96432549]
[1772967524720,10.22184202,83.608,83.571,7.96432549]
[1772967525022,10.22184202,83.607,83.571,7.96432549]
[1772967525217,10.22184202,83.606,83.571,7.96432549]
[1772967525412,10.763,83.618,83.572,10.769]
[1772967525723,10.22169263,83.617,83.573,7.9516672]
[1772967525918,10.22169263,83.616,83.573,7.9516672]
[1772967526110,10.22169263,83.615,83.573,7.9516672]
[1772967526317,10.22169263,83.614,83.573,7.9516672]
[1772967526514,10.22169263,83.613,83.573,7.9516672]
[1772967526820,10.22169263,83.612,83.573,7.9516672]
[1772967527022,10.22169263,83.611,83.573,7.9516672]
[1772967527224,10.22169263,83.61,83.573,7.9516672]
[1772967527423,10.763,83.618,83.573,7.9516672]
[1772967527623,10.22156967,83.617,83.573,7.9516672]
[1772967527824,10.22156967,83.616,83.573,7.9516672]
[1772967528121,10.22156967,83.615,83.573,7.9516672]
[1772967528316,10.22156967,83.614,83.573,7.9516672]
[1772967528519,10.22156967,83.613,83.573,7.9516672]
[1772967528821,10.22156967,83.612,83.573,7.9516672]
[1772967529025,10.22156967,83.611,83.573,7.9516672]
[1772967529222,10.22156967,83.61,83.573,7.9516672]
[1772967529420,10.763,83.618,83.573,7.9516672]
[1772967529621,10.22240639,83.617,83.573,7.9516672]
[1772967529817,10.22240639,83.616,83.573,7.9516672]
[1772967530018,10.22240639,83.615,83.573,7.9516672]
[1772967530218,10.22240639,83.614,83.573,7.9516672]
[1772967530417,10.22240639,83.613,83.573,7.9516672]
[1772967530620,10.22240639,83.612,83.573,7.9516672]
[1772967530822,10.22240639,83.611,83.573,7.9516672]
[1772967531020,10.22240639,83.61,83.573,7.9516672]
[1772967531221,10.763,83.618,83.573,7.9516672]
[1772967531420,10.22230478,83.617,83.573,7.9516672]
[1772967531624,10.22230478,83.616,83.573,7.9516672]
[1772967531823,10.22230478,83.615,83.573,7.9516672]
[1772967532025,10.22230478,83.614,83.573,7.9516672]
[1772967532324,10.22230478,83.613,83.573,7.9516672]
[1772967532522,10.22230478,83.612,83.573,7.9516672]
[1772967532720,10.22230478,83.611,83.573,7.9516672]
[1772967532924,10.22230478,83.61,83.573,7.9516672]
[1772967533121,10.763,83.618,83.573,7.9516672]
[1772967533321,10.22195691,83.617,83.573,7.9516672]
[1772967533521,10.22195691,83.616,83.573,7.9516672]
[1772967533723,10.22195691,83.615,83.573,7.9516672]
[1772967533923,10.764,83.613,83.573,7.9516672]
[1772967534122,10.22195691,83.612,83.573,7.9516672]
[1772967534423,10.22195691,83.611,83.573,7.9516672]
[1772967534724,10.22195691,83.61,83.573,7.9516672]
[1772967534924,10.22195691,83.609,83.573,7.9516672]
[1772967535125,10.22195691,83.608,83.573,7.9516672]
[1772967535424,11.16273892,83.627,83.573,7.9516672]
[1772967535624,10.22201756,83.626,83.573,7.9516672]
[1772967535825,10.764,83.61,83.573,7.9516672]
[1772967536024,10.22201756,83.609,83.573,7.9516672]
[1772967536324,10.22201756,83.608,83.573,7.9516672]
[1772967536525,10.764,83.61,83.573,7.9516672]
[1772967536827,10.22189669,83.609,83.573,7.9516672]
[1772967537030,10.764,83.61,83.573,7.9516672]
[1772967537228,10.22137707,83.609,83.573,7.9516672]
[1772967537429,10.22137707,83.608,83.573,7.9516672]
[1772967537618,10.22137707,83.607,83.573,7.9516672]
[1772967537822,10.22137707,83.606,83.573,7.9516672]
[1772967538023,10.22137707,83.605,83.573,7.9516672]
[1772967538220,10.764,83.61,83.573,7.9516672]
[1772967538419,10.22128286,83.609,83.573,7.9516672]
[1772967538725,10.22128286,83.608,83.573,7.9516672]
[1772967538924,10.22128286,83.607,83.573,7.9516672]
[1772967539125,10.22128286,83.606,83.573,7.9516672]
[1772967539325,10.22128286,83.605,83.573,7.9516672]
[1772967539525,10.764,83.61,83.573,7.9516672]
[1772967539721,10.22155446,83.609,83.573,7.9516672]
[1772967539928,10.22155446,83.608,83.573,7.9516672]
[1772967540129,10.22155446,83.607,83.573,7.9516672]
[1772967540329,10.22155446,83.606,83.573,7.9516672]
[1772967540525,10.764,83.61,83.573,7.9516672]
[1772967540719,10.765,83.608,83.573,7.9516672]
[1772967540922,10.19243967,83.607,83.573,7.9516672]
[1772967541127,10.19243967,83.606,83.573,7.9516672]
[1772967541428,10.765,83.604,83.573,7.9516672]
[1772967541835,11.16273892,83.623,83.573,7.9516672]
[1772967542031,10.19326608,83.622,83.573,7.9516672]
[1772967542231,10.19326608,83.621,83.573,7.9516672]
[1772967542433,10.19326608,83.62,83.573,7.9516672]
[1772967542736,10.19326608,83.619,83.573,7.9516672]
[1772967542938,10.764,83.612,83.573,7.9516672]
[1772967543138,10.19326608,83.611,83.573,7.9516672]
[1772967543339,10.19326608,83.61,83.573,7.9516672]
[1772967543541,10.19326608,83.609,83.573,7.9516672]
[1772967543737,10.19326608,83.608,83.573,7.9516672]
[1772967543938,10.19326608,83.607,83.573,7.9516672]
[1772967544134,10.19326608,83.606,83.573,7.9516672]
[1772967544334,10.19326608,83.605,83.573,7.9516672]
[1772967544536,10.19326608,83.604,83.573,7.9516672]
[1772967544737,10.19540166,83.603,83.573,7.9516672]
[1772967544938,10.764,83.612,83.573,7.9516672]
[1772967545139,10.19540166,83.611,83.573,7.9516672]
[1772967545339,10.19540166,83.61,83.573,7.9516672]
[1772967545535,10.19540166,83.609,83.573,7.9516672]
[1772967545739,10.19540166,83.608,83.573,7.9516672]
[1772967545946,10.19540166,83.607,83.573,7.9516672]
[1772967546147,10.19540166,83.606,83.573,7.9516672]
[1772967546346,10.19540166,83.605,83.573,7.9516672]
[1772967546548,10.19540166,83.604,83.573,7.9516672]
[1772967546746,10.19540166,83.603,83.573,7.9516672]
[1772967546946,10.19540166,83.602,83.573,7.9516672]
[1772967547248,10.764,83.612,83.573,7.9516672]
[1772967547448,10.764,83.61,83.573,7.9516672]
[1772967547647,10.19834339,83.609,83.573,7.9516672]
[1772967547948,10.19834339,83.608,83.573,7.9516672]
[1772967548146,10.19834339,83.607,83.573,7.9516672]
[1772967548346,10.19834339,83.606,83.573,7.9516672]
[1772967548641,10.19834339,83.605,83.573,7.9516672]
[1772967548848,10.19834339,83.604,83.573,7.9516672]
[1772967549045,10.19834339,83.603,83.573,7.9516672]
[1772967549350,10.19834339,83.602,83.573,7.9516672]
[1772967549549,10.19834339,83.601,83.573,7.9516672]
[1772967549748,10.764,83.61,83.573,7.9516672]
[1772967549950,10.20043804,83.609,83.573,7.9516672]
[1772967550150,10.20043804,83.608,83.573,7.9516672]
[1772967550446,10.765,83.606,83.573,7.9516672]
[1772967550647,10.20043804,83.605,83.573,7.9516672]
[1772967550847,10.20043804,83.604,83.557,7.983678]
[1772967551041,11.16273892,83.616,83.557,7.983678]
[1772967551042,10.20043804,83.603,83.557,7.983678]
[1772967551247,10.20043804,83.602,83.557,7.983678]
[1772967551446,11.16273892,83.616,83.557,7.983678]
[1772967551447,10.766,83.6,83.557,7.983678]
[1772967551648,10.20043804,83.599,83.557,7.983678]
[1772967551945,10.20043804,83.598,83.557,7.983678]
[1772967552150,10.20043804,83.597,83.557,7.983678]
[1772967552351,10.20043804,83.596,83.557,7.983678]
[1772967552647,10.766,83.6,83.557,7.983678]
[1772967552850,10.20264534,83.599,83.557,7.983678]
[1772967553151,10.20264534,83.598,83.557,7.983678]
[1772967553346,10.20264534,83.597,83.557,7.983678]
[1772967553550,10.20264534,83.596,83.557,7.983678]
[1772967553752,10.20264534,83.595,83.557,7.983678]
[1772967553948,10.766,83.6,83.557,7.983678]
[1772967553949,10.20264534,83.594,83.557,7.983678]
[1772967554252,10.20264534,83.593,83.557,7.983678]
[1772967554551,10.20264534,83.592,83.557,7.983678]
[1772967554851,10.766,83.6,83.557,7.983678]
[1772967555047,10.20376103,83.599,83.557,7.983678]
[1772967555247,10.20376103,83.598,83.557,7.983678]
[1772967555448,10.20376103,83.597,83.557,7.983678]
[1772967555648,10.20376103,83.596,83.557,7.983678]
[1772967555848,10.20376103,83.595,83.557,7.983678]
[1772967556051,10.20376103,83.594,83.557,7.983678]
[1772967556245,10.20376103,83.593,83.557,7.983678]
[1772967556452,10.20376103,83.592,83.557,7.983678]
[1772967556650,10.20376103,83.591,83.557,7.983678]
[1772967556846,10.20376103,83.59,83.557,7.983678]
[1772967557048,10.20376103,83.589,83.557,7.983678]
[1772967557351,10.766,83.594,83.557,7.983678]
[1772967557550,10.20285085,83.593,83.557,7.983678]
[1772967557747,10.20285085,83.592,83.557,7.983678]
[1772967557943,10.20285085,83.591,83.557,7.983678]
[1772967558141,10.766,83.594,83.557,7.983678]
[1772967558342,10.20150971,83.593,83.557,7.983678]
[1772967558544,10.20150971,83.592,83.557,7.983678]
[1772967558747,10.20150971,83.591,83.557,7.983678]
[1772967558951,10.766,83.594,83.557,7.983678]
[1772967559154,10.20150971,83.593,83.557,7.983678]
[1772967559353,10.20150971,83.592,83.557,7.983678]
[1772967559553,10.20150971,83.591,83.557,7.983678]
[1772967559751,10.766,83.594,83.557,7.983678]
[1772967559946,10.2003026,83.593,83.557,7.983678]
[1772967560252,10.2003026,83.592,83.557,7.983678]
[1772967560549,10.766,83.594,83.557,7.983678]
[1772967560751,10.1993295,83.593,83.557,7.983678]
[1772967560950,10.1993295,83.592,83.557,7.983678]
[1772967561255,10.19871845,83.591,83.557,7.983678]
[1772967561552,10.766,83.594,83.557,7.983678]
[1772967561852,10.19858242,83.593,83.557,7.983678]
[1772967562053,10.19858242,83.592,83.557,7.983678]
[1772967562257,10.766,83.594,83.557,7.983678]
[1772967562457,10.19786795,83.593,83.557,7.983678]
[1772967562749,10.19786795,83.592,83.557,7.983678]
[1772967562948,10.766,83.594,83.557,7.983678]
[1772967563149,10.19786888,83.593,83.557,7.983678]
[1772967563451,10.766,83.594,83.557,7.983678]
[1772967563654,10.19700542,83.593,83.557,7.983678]
[1772967563843,10.19700542,83.592,83.557,7.983678]
[1772967564042,11.16273892,83.612,83.557,7.983678]
[1772967564247,21.35909976,83.611,83.557,7.983678]
[1772967564443,10.19636084,83.61,83.557,7.983678]
[1772967564649,10.19636084,83.609,83.557,7.983678]
[1772967564853,10.766,83.599,83.557,7.983678]
[1772967565044,10.19636084,83.598,83.557,7.983678]
[1772967565250,10.19636084,83.597,83.557,7.983678]
[1772967565553,10.19636084,83.596,83.557,7.983678]
[1772967565749,10.19636084,83.595,83.557,7.983678]
[1772967565953,10.19636084,83.594,83.557,7.983678]
[1772967566153,10.19636084,83.593,83.557,7.983678]
[1772967566354,10.766,83.599,83.557,7.983678]
[1772967566556,10.19504185,83.598,83.557,7.983678]
[1772967566854,10.19504185,83.597,83.557,7.983678]
[1772967567051,10.19504185,83.596,83.557,7.983678]
[1772967567255,10.19504185,83.595,83.557,7.983678]
[1772967567452,10.19504185,83.594,83.557,7.983678]
[1772967567652,10.19504185,83.593,83.557,7.983678]
[1772967567850,10.19504185,83.592,83.557,7.983678]
[1772967568156,10.766,83.599,83.557,7.983678]
[1772967568351,10.19416039,83.598,83.557,7.983678]
[1772967568652,10.766,83.599,83.557,7.983678]
[1772967568653,10.19416039,83.597,83.557,7.983678]
[1772967568847,10.19416039,83.596,83.557,7.983678]
[1772967569044,10.19416039,83.595,83.557,7.983678]
[1772967569245,10.19416039,83.594,83.557,7.983678]
[1772967569556,10.19396807,83.593,83.557,7.983678]
[1772967569753,10.766,83.599,83.557,7.983678]
[1772967569953,10.18416919,83.598,83.557,7.983678]
[1772967570253,10.18416919,83.597,83.557,7.983678]
[1772967570450,10.18416919,83.596,83.557,7.983678]
[1772967570651,10.18416919,83.595,83.557,7.983678]
[1772967570853,10.18416919,83.594,83.557,7.983678]
[1772967571055,10.18416919,83.593,83.557,7.983678]
[1772967571256,10.766,83.599,83.557,7.983678]
[1772967571457,10.18362712,83.598,83.557,7.983678]
[1772967571757,10.18362712,83.597,83.557,7.983678]
[1772967571955,10.18362712,83.596,83.557,7.983678]
[1772967572255,10.18362712,83.595,83.557,7.983678]
[1772967572455,10.18362712,83.594,83.557,7.983678]
[1772967572658,10.766,83.599,83.557,7.983678]
[1772967572852,10.18351469,83.598,83.557,7.983678]
[1772967573052,10.18351469,83.597,83.557,7.983678]
[1772967573255,10.766,83.599,83.557,7.983678]
[1772967573457,10.18347871,83.598,83.557,7.983678]
[1772967573757,10.18347871,83.597,83.557,7.983678]
[1772967574056,10.766,83.599,83.557,7.983678]
[1772967574259,10.18340839,83.598,83.557,7.983678]
[1772967574454,10.18340839,83.597,83.557,7.983678]
[1772967574654,10.18365273,83.596,83.557,7.983678]
[1772967574953,10.766,83.599,83.557,7.983678]
[1772967575154,10.18351883,83.598,83.557,7.983678]
[1772967575354,10.18351883,83.597,83.557,7.983678]
[1772967575554,10.766,83.599,83.557,7.983678]
[1772967575750,10.18361809,83.598,83.557,7.983678]
[1772967575948,10.18361809,83.597,83.557,7.983678]
[1772967576153,10.18373555,83.596,83.557,7.983678]
[1772967576358,10.766,83.599,83.557,7.983678]
[1772967576556,10.18378644,83.598,83.557,7.983678]
[1772967576756,10.766,83.599,83.557,7.983678]
[1772967576757,10.18378644,83.597,83.557,7.983678]
[1772967577057,10.765,83.606,83.559,7.9530092]
[1772967577258,10.18379341,83.605,83.559,7.9530092]
[1772967577460,10.765,83.606,83.559,7.9530092]
[1772967577461,10.18379341,83.604,83.559,7.9530092]
[1772967577655,10.18379341,83.603,83.559,7.9530092]
[1772967577857,10.18379341,83.602,83.559,7.9530092]
[1772967578057,10.18379341,83.601,83.559,7.9530092]
[1772967578252,10.765,83.606,83.559,7.9530092]
[1772967578455,10.18432635,83.605,83.559,7.9530092]
[1772967578659,10.18432635,83.604,83.559,7.9530092]
[1772967578858,10.18432635,83.603,83.559,7.9530092]
[1772967579058,10.18432635,83.602,83.559,7.9530092]
[1772967579260,10.18432635,83.601,83.559,7.9530092]
[1772967579462,10.765,83.606,83.559,7.9530092]
[1772967579760,10.18445731,83.605,83.562,7.97197149]
[1772967579955,10.18401762,83.604,83.562,7.97197149]
[1772967580155,638.09793579,83.62,83.562,7.97197149]
[1772967580460,10.18434532,83.619,83.562,7.97197149]
[1772967580760,10.765,83.607,83.565,10.77]
[1772967580959,10.18434532,83.606,83.565,10.77]
[1772967581159,10.18434532,83.605,83.565,10.77]
[1772967581361,10.18434532,83.604,83.562,7.97197149]
[1772967581557,10.18434532,83.603,83.562,7.97197149]
[1772967581758,10.18434532,83.602,83.562,7.97197149]
[1772967582057,10.765,83.607,83.562,7.97197149]
[1772967582264,10.18515707,83.606,83.562,7.97197149]
[1772967582564,10.18515707,83.605,83.562,7.97197149]
[1772967582764,10.18515707,83.604,83.562,7.97197149]
[1772967582959,10.18515707,83.603,83.562,7.97197149]
[1772967583165,10.18515707,83.602,83.562,7.97197149]
[1772967583364,10.18515707,83.601,83.562,7.97197149]
[1772967583563,10.765,83.607,83.562,7.97197149]
[1772967583564,10.18515707,83.6,83.562,7.97197149]
[1772967583764,10.18515707,83.599,83.562,7.97197149]
[1772967583958,10.765,83.607,83.562,7.97197149]
[1772967584164,638.09793579,83.62,83.564,7.97256578]
[1772967584364,10.18511241,83.619,83.564,7.97256578]
[1772967584663,638.09793579,83.62,83.564,7.97256578]
[1772967584664,10.18511241,83.618,83.564,7.97256578]
[1772967584860,10.18511241,83.617,83.564,7.97256578]
[1772967585161,638.09793579,83.62,83.564,7.97256578]
[1772967585468,10.18385593,83.619,83.564,7.97256578]
[1772967585666,10.18385593,83.618,83.564,7.97256578]
[1772967585866,638.09793579,83.62,83.579,7.97179966]
[1772967586066,10.17333717,83.619,83.579,7.97179966]
[1772967586366,10.17333717,83.618,83.579,7.97179966]
[1772967586566,638.09793579,83.62,83.579,7.97179966]
[1772967586763,10.17239288,83.619,83.579,7.97179966]
[1772967586960,10.17239288,83.618,83.582,7.97180311]
[1772967587166,638.09793579,83.62,83.582,7.97180311]
[1772967587362,10.17159792,83.619,83.582,7.97180311]
[1772967587557,10.17159792,83.618,83.582,7.97180311]
[1772967587762,10.17159792,83.617,83.584,7.97365054]
[1772967588063,10.17159792,83.616,83.584,7.97365054]
[1772967588267,10.17159792,83.615,83.584,7.97365054]
[1772967588468,10.17159792,83.614,83.584,7.97365054]
[1772967588668,10.17159792,83.613,83.584,7.97365054]
[1772967588968,10.17159792,83.612,83.584,7.97365054]
[1772967589267,638.09793579,83.62,83.584,7.97365054]
[1772967589467,10.16992987,83.619,83.584,7.97365054]
[1772967589668,10.16992987,83.618,83.584,7.97365054]
[1772967589864,10.16992987,83.617,83.584,7.97365054]
[1772967590064,10.16992987,83.616,83.584,7.97365054]
[1772967590269,10.16992987,83.615,83.584,7.97365054]
[1772967590470,10.16992987,83.614,83.584,7.97365054]
[1772967590673,10.16992987,83.613,83.584,7.97365054]
[1772967590970,10.762,83.63,83.584,7.97365054]
[1772967590971,10.16992987,83.612,83.584,7.97365054]
[1772967591168,10.762,83.63,83.584,7.97365054]
[1772967591370,10.16839535,83.629,83.584,7.97365054]
[1772967591568,11.16273892,83.633,83.584,7.97365054]
[1772967591569,11.17739202,83.655,83.584,7.97365054]
[1772967591769,21.1280218,83.669,83.579,21.537]
[1772967592071,21.1280218,83.669,83.594,10.766]
[1772967593861,21.03759055,83.667,83.594,10.766]
[1772967594568,21.0375883,83.661,83.583,10.768]
[1772967595564,20.98961938,83.651,83.583,10.768]
[1772967596768,10.76,83.643,83.583,10.768]
[1772967596973,20.98961781,83.642,83.583,10.768]
[1772967598463,20.99478586,83.639,83.583,10.768]
[1772967599568,20.99476167,83.636,83.583,10.768]
[1772967599768,20.99476167,83.636,83.572,10.769]
[1772967600868,20.99476167,83.633,83.572,10.769]
[1772967601572,20.99346742,83.62,83.563,10.77]
[1772967602974,20.99346742,83.617,83.563,10.77]
[1772967603170,20.99346742,83.617,83.572,10.769]
[1772967605780,20.99346742,83.617,83.547,14.7800819]
[1772967623085,20.99346742,83.617,83.547,44.36161912]
[1772967624193,20.99346742,83.617,83.548,29.58153722]
[1772967624393,20.99346742,83.617,83.547,44.36161912]
[1772967624594,20.99346742,83.617,83.548,29.58153722]
[1772967625294,20.99346742,83.617,83.547,44.36161912]
[1772967626094,20.99346742,83.617,83.547,14.7800819]
[1772967637409,21.04594607,83.615,83.547,14.7800819]
[1772967637616,21.04594607,83.613,83.547,14.7800819]
[1772967637809,21.04594607,83.611,83.547,14.7800819]